[Event "DVM U14 2024"]
[Site "Heidelberg"]
[Date "2024.12.28"]
[Round "3"]
[White "Sitnik, Arthur"]
[Black "Geschke, Jonathan"]
[Result "1/2-1/2"]
[ECO "C29"]
[WhiteElo "1668"]
[BlackElo "1698"]
[Annotator "NA RC"]
[PlyCount "128"]
[EventDate "2024.12.23"]
[EventType "team-tourn"]
[EventRounds "7"]
[EventCountry "GER"]
[SourceTitle "playchess.com"]
[Source "ChessBase"]
[SourceQuality "1"]
[TimeControl "40/5400+30:1800+30"]

1. e4 {[%emt 0:00:01]} e5 {[%emt 0:00:10]} 2. Nc3 {[%emt 0:00:05]} Nf6 {[%emt 0:00:06]} 3. f4 {[%emt 0:00:03]} d5 {[%emt 0:00:07]} 4. fxe5 {[%emt 0:00:04]} Nxe4 {[%emt 0:00:09]} 5. Qf3 {[%emt 0:00:03]} Nxc3 {[%emt 0:00:56]} 6. bxc3 {[%emt 0:00:05]} Be6 {[%emt 0:05:23]} 7. d4 {[%emt 0:00:36]} c5 {[%emt 0:00:46]} 8. Rb1 {[%emt 0:05:53]} b6 {[%emt 0:06:58]} 9. Bb5+ {[%emt 0:00:22]} Nd7 {[%emt 0:01:46]} 10. Bc6 {[%emt 0:00:40]} Rc8 {[%emt 0:02:00]} 11. Bb7 {[%emt 0:01:38]} Rc7 {[%emt 0:00:23]} 12. Bxd5 {[%emt 0:13:55]} Bxd5 {[%emt 0:00:16]} 13. Qxd5 {[%emt 0:00:06]} cxd4 {[%emt 0:00:14]} 14. cxd4 {[%emt 0:01:03]} Rxc2 {[%emt 0:03:23]} 15. Ne2 {[%emt 0:01:30]} Qc8 {[%emt 0:04:02]} 16. O-O {[%emt 0:02:02]} Qc4 {[%emt 0:08:02]} 17. Qa8+ {[%emt 0:02:41]} Qc8 {[%emt 0:01:39]} 18. Qe4 {[%emt 0:04:02]} Be7 {[%emt 0:06:23]} 19. e6 {[%emt 0:02:16]} fxe6 {[%emt 0:03:53]} 20. Qxe6 {[%emt 0:01:51]} Qc4 {[%emt 0:01:11]} 21. Qxc4 {[%emt 0:13:39]} Rxc4 {[%emt 0:00:12]} 22. Bb2 {[%emt 0:02:43]} Rc2 {[%emt 0:03:15]} 23. Nc3 {[%emt 0:01:45]} Rf8 {[%emt 0:05:23]} 24. Rxf8+ {[%emt 0:01:59]} Kxf8 {[%emt 0:01:23]} 25. Rf1+ {[%emt 0:01:39]} Kg8 {[%emt 0:01:21]} 26. Rf2 {[%emt 0:01:06]} Rxf2 {[%emt 0:03:20]} 27. Kxf2 {[%emt 0:00:32]} Kf7 {[%emt 0:03:53]} 28. Kf3 {[%emt 0:03:22]} Bf6 {[%emt 0:04:36]} 29. Nb5 {[%emt 0:03:06]} a6 {[%emt 0:05:06]} 30. Nc7 {[%emt 0:01:28]} a5 {[%emt 0:01:14]} 31. Nd5 {[%emt 0:00:37]} Ke6 {[%emt 0:02:21]} 32. Nxf6 {[%emt 0:05:27]} Nxf6 {[%emt 0:00:16]} 33. Ke2 {[%emt 0:02:06]} Kd5 {[%emt 0:01:31]} 34. Kd3 {[%emt 0:01:28]} Ng4 {[%emt 0:02:08]} 35. h3 {[%emt 0:00:07]} Nf2+ {[%emt 0:00:36]} 36. Ke2 {[%emt 0:00:13]} Ne4 {[%emt 0:01:05]} 37. Kd3 {[%emt 0:00:35]} b5 {[%emt 0:02:52]} 38. a3 {[%emt 0:07:53]} Ng5 {[%emt 0:01:24]} 39. Bc3 {[%emt 0:01:00]} a4 {[%emt 0:01:53]} 40. h4 {[%emt 0:04:27]} Ne6 {[%emt 0:01:48]} 41. g3 {[%emt 0:30:39]} h5 {[%emt 0:31:25]} 42. Ba1 {[%emt 0:01:48]} g6 {[%emt 0:00:44]} 43. Bb2 {[%emt 0:00:09]} Ng7 {[%emt 0:00:13]} 44. Kc3 {[%emt 0:00:15]} Nf5 {[%emt 0:03:44]} 45. Kb4 {[%emt 0:00:06]} Kc6 {[%emt 0:01:40]} 46. d5+ {[%emt 0:02:30]} Kxd5 {[%emt 0:04:23]} 47. Kxb5 {[%emt 0:00:46]} Nxg3 {[%emt 0:00:27]} 48. Kxa4 {[%emt 0:01:40]} Kc6 {[%emt 0:01:01]} 49. Kb4 {[%emt 0:00:32]} Nf5 {[%emt 0:02:06]} 50. Bf6 {[%emt 0:00:29]} Kb6 {[%emt 0:00:36]} 51. Kc4 {[%emt 0:01:36]} Ka5 {[%emt 0:01:14]} 52. Kb3 {[%emt 0:01:02]} Kb5 {[%emt 0:00:41]} 53. a4+ {[%emt 0:00:09]} Ka5 {[%emt 0:00:36]} 54. Bd8+ {[%emt 0:00:13]} Ka6 {[%emt 0:00:06]} 55. Kb4 {[%emt 0:00:40]} Kb7 {[%emt 0:01:13]} 56. Kb5 {[%emt 0:00:16]} Ka7 {[%emt 0:00:39]} 57. a5 {[%emt 0:00:19]} Kb7 {[%emt 0:00:27]} 58. a6+ {[%emt 0:00:33]} Ka7 {[%emt 0:00:31]} 59. Bg5 {[%emt 0:00:31]} Ka8 {[%emt 0:00:28]} 60. Kb6 {[%emt 0:00:33]} Ng7 {[%emt 0:00:56]} 61. Kc6 {[%emt 0:00:42]} Nf5 {[%emt 0:00:36]} 62. Kc5 {[%emt 0:00:40]} Ka7 {[%emt 0:00:16]} 63. Kd5 {[%emt 0:00:25]} Nxh4 {[%emt 0:00:22]} 64. Bxh4 {[%emt 0:00:07]} Kxa6 {[%emt 0:00:06]} 1/2-1/2

[Event "DVM U14 2024"]
[Site "Heidelberg"]
[Date "2024.12.28"]
[Round "3"]
[White "Derhay, Davyd"]
[Black "Shevchenko, Igor"]
[Result "0-1"]
[ECO "B13"]
[WhiteElo "1665"]
[BlackElo "1788"]
[Annotator "NA RC"]
[PlyCount "68"]
[EventDate "2024.12.23"]
[EventType "team-tourn"]
[EventRounds "7"]
[EventCountry "GER"]
[SourceTitle "playchess.com"]
[Source "ChessBase"]
[SourceQuality "1"]
[TimeControl "40/5400+30:1800+30"]

1. e4 {[%emt 0:00:01]} c6 {[%emt 0:00:04]} 2. d4 {[%emt 0:00:08]} d5 {[%emt 0:00:05]} 3. exd5 {[%emt 0:00:05]} cxd5 {[%emt 0:00:04]} 4. Bd3 {[%emt 0:00:05]} Nc6 {[%emt 0:00:10]} 5. c3 {[%emt 0:00:22]} Qc7 {[%emt 0:00:05]} 6. h3 {[%emt 0:00:26]} g6 {[%emt 0:00:27]} 7. Ne2 {[%emt 0:02:05]} Bf5 {[%emt 0:03:36]} 8. O-O {[%emt 0:15:10]} Nf6 {[%emt 0:02:46]} 9. Bxf5 {[%emt 0:01:56]} gxf5 {[%emt 0:01:27]} 10. Bf4 {[%emt 0:00:31]} Qd7 {[%emt 0:00:33]} 11. Nd2 {[%emt 0:01:34]} e6 {[%emt 0:04:56]} 12. Nf3 {[%emt 0:02:56]} Bg7 {[%emt 0:02:59]} 13. Re1 {[%emt 0:03:35]} O-O {[%emt 0:05:17]} 14. Ng3 {[%emt 0:01:48]} Rfc8 {[%emt 0:09:07]} 15. Ne5 {[%emt 0:05:40]} Qe8 {[%emt 0:01:04]} 16. Bg5 {[%emt 0:09:18]} Ne4 {[%emt 0:03:07]} 17. Nxe4 {[%emt 0:03:59]} fxe4 {[%emt 0:00:40]} 18. Ng4 {[%emt 0:03:29]} f5 {[%emt 0:00:49]} 19. Nh6+ {[%emt 0:02:11]} Bxh6 {[%emt 0:01:04]} 20. Bxh6 {[%emt 0:00:05]} Qg6 {[%emt 0:00:28]} 21. Qd2 {[%emt 0:00:57]} Kf7 {[%emt 0:01:40]} 22. Rac1 {[%emt 0:05:50]} Rg8 {[%emt 0:01:01]} 23. g3 {[%emt 0:00:44]} Qh5 {[%emt 0:01:10]} 24. Kg2 {[%emt 0:01:01]} Ne7 {[%emt 0:05:11]} 25. Qe3 {[%emt 0:04:13]} Ng6 {[%emt 0:01:53]} 26. Kh2 {[%emt 0:00:27]} e5 {[%emt 0:01:24]} 27. Rg1 {[%emt 0:01:23]} f4 {[%emt 0:00:20]} 28. Bxf4 {[%emt 0:07:24]} exf4 {[%emt 0:01:33]} 29. gxf4 {[%emt 0:00:11]} Nh4 {[%emt 0:00:16]} 30. Rg3 {[%emt 0:05:08]} Nf3+ {[%emt 0:00:12]} 31. Kg2 {[%emt 0:00:39]} Nh4+ {[%emt 0:00:12]} 32. Kh2 {[%emt 0:01:04]} Nf5 {[%emt 0:00:03]} 33. Rxg8 {[%emt 0:00:16]} Rxg8 {[%emt 0:00:41]} 34. Qd2 {[%emt 0:00:17]} Nh4 {[%emt 0:00:24]} 0-1

[Event "DVM U14 2024"]
[Site "Heidelberg"]
[Date "2024.12.28"]
[Round "3"]
[White "Aweh, Mads"]
[Black "Schwitkowski, Luka"]
[Result "0-1"]
[ECO "B50"]
[WhiteElo "1663"]
[BlackElo "2070"]
[Annotator "RC"]
[PlyCount "106"]
[EventDate "2024.12.23"]
[EventType "team-tourn"]
[EventRounds "7"]
[EventCountry "GER"]
[SourceTitle "playchess.com"]
[Source "ChessBase"]
[SourceQuality "1"]
[TimeControl "40/5400+30:1800+30"]

1. e4 {[%emt 0:00:04]} c5 {[%emt 0:00:06]} 2. Nf3 {[%emt 0:00:07]} d6 {[%emt 0:00:11]} 3. c3 {[%emt 0:00:12]} Nf6 {[%emt 0:00:08]} 4. Be2 {[%emt 0:00:10]} Nc6 {[%emt 0:00:25]} 5. d4 {[%emt 0:00:10]} cxd4 {[%emt 0:00:08]} 6. cxd4 {[%emt 0:00:09]} d5 {[%emt 0:02:07]} 7. e5 {[%emt 0:01:40]} Ne4 {[%emt 0:00:06]} 8. O-O {[%emt 0:01:32]} Bg4 {[%emt 0:00:59]} 9. Nc3 {[%emt 0:00:51]} e6 {[%emt 0:01:56]} 10. Be3 {[%emt 0:05:02]} Be7 {[%emt 0:18:46]} 11. Nxe4 {[%emt 0:21:48]} dxe4 {[%emt 0:00:21]} 12. Nd2 {[%emt 0:00:07]} Bxe2 {[%emt 0:00:23]} 13. Qxe2 {[%emt 0:00:06]} Nxd4 {[%emt 0:00:51]} 14. Bxd4 {[%emt 0:00:13]} Qxd4 {[%emt 0:00:05]} 15. Qb5+ {[%emt 0:00:14]} Qd7 {[%emt 0:00:08]} 16. Qxd7+ {[%emt 0:00:09]} Kxd7 {[%emt 0:00:02]} 17. Nxe4 {[%emt 0:00:13]} Rhd8 {[%emt 0:00:18]} 18. Rfd1+ {[%emt 0:02:54]} Ke8 {[%emt 0:00:38]} 19. Kf1 {[%emt 0:02:21]} Rxd1+ {[%emt 0:03:25]} 20. Rxd1 {[%emt 0:00:31]} Rd8 {[%emt 0:00:01]} 21. Rxd8+ {[%emt 0:00:44]} Kxd8 {[%emt 0:00:08]} 22. Ke2 {[%emt 0:00:21]} Kc7 {[%emt 0:00:13]} 23. Kd3 {[%emt 0:00:37]} Kc6 {[%emt 0:00:06]} 24. Kc4 {[%emt 0:03:30]} b5+ {[%emt 0:03:52]} 25. Kd4 {[%emt 0:02:56]} f5 {[%emt 0:05:05]} 26. exf6 {[%emt 0:03:26]} gxf6 {[%emt 0:00:03]} 27. Kd3 {[%emt 0:02:42]} f5 {[%emt 0:03:29]} 28. Nd2 {[%emt 0:01:38]} Kd5 {[%emt 0:00:40]} 29. f3 {[%emt 0:01:51]} Bf6 {[%emt 0:10:49]} 30. b3 {[%emt 0:03:07]} Bg5 {[%emt 0:05:28]} 31. Nf1 {[%emt 0:07:24]} h5 {[%emt 0:12:11]} 32. Ne3+ {[%emt 0:04:59]} Kc5 {[%emt 0:09:22]} 33. Nc2 {[%emt 0:07:05]} Bf6 {[%emt 0:10:08]} 34. Ke3 {[%emt 0:04:21]} Be5 {[%emt 0:02:15]} 35. h3 {[%emt 0:04:46]} h4 {[%emt 0:02:12]} 36. Kd3 {[%emt 0:01:10]} a5 {[%emt 0:03:36]} 37. Ne3 {[%emt 0:01:13]} Bf4 {[%emt 0:02:17]} 38. Nc2 {[%emt 0:02:15]} e5 {[%emt 0:01:48]} 39. Ne1 {[%emt 0:02:43]} Kd5 {[%emt 0:02:11]} 40. Nc2 {[%emt 0:00:40]} Kc5 {[%emt 0:02:24]} 41. Ne1 {[%emt 0:30:43]} Kd5 {[%emt 0:30:19]} 42. Nc2 {[%emt 0:00:51]} Bg5 {[%emt 0:00:00]} 43. Na3 {[%emt 0:00:00]} Kc5 {[%emt 0:00:00]} 44. Nc2 {[%emt 0:00:00]} b4 {[%emt 0:00:00]} 45. a3 {[%emt 0:00:00]} bxa3 {[%emt 0:00:00]} 46. Nxa3 {[%emt 0:00:00]} Kb4 {[%emt 0:00:00]} 47. Nc4 {[%emt 0:00:00]} Bf4 {[%emt 0:00:00]} 48. Kc2 {[%emt 0:00:00]} a4 {[%emt 0:00:00]} 49. Nd6 {[%emt 0:00:00]} axb3+ {[%emt 0:00:00]} 50. Kb2 {[%emt 0:00:00]} e4 {[%emt 0:00:00]} 51. fxe4 {[%emt 0:00:00]} Be5+ {[%emt 0:00:00]} 52. Kb1 {[%emt 0:00:00]} Bxd6 {[%emt 0:00:00]} 53. exf5 {[%emt 0:00:00]} Be5 {[%emt 0:00:00]} 0-1

[Event "DVM U14 2024"]
[Site "Heidelberg"]
[Date "2024.12.28"]
[Round "3"]
[White "Meijers, Jaroslav"]
[Black "Mosch, Cornelius"]
[Result "0-1"]
[ECO "D36"]
[WhiteElo "1663"]
[BlackElo "1405"]
[Annotator "NA RC"]
[PlyCount "120"]
[EventDate "2024.12.23"]
[EventType "team-tourn"]
[EventRounds "7"]
[EventCountry "GER"]
[SourceTitle "playchess.com"]
[Source "ChessBase"]
[SourceQuality "1"]
[TimeControl "40/5400+30:1800+30"]

1. d4 {[%emt 0:00:07]} d5 {[%emt 0:00:05]} 2. c4 {[%emt 0:00:07]} e6 {[%emt 0:00:05]} 3. Nc3 {[%emt 0:00:05]} Nf6 {[%emt 0:00:06]} 4. cxd5 {[%emt 0:00:08]} exd5 {[%emt 0:00:08]} 5. Bg5 {[%emt 0:00:06]} Be7 {[%emt 0:00:17]} 6. e3 {[%emt 0:00:04]} O-O {[%emt 0:00:13]} 7. Bd3 {[%emt 0:00:14]} c6 {[%emt 0:01:22]} 8. Qc2 {[%emt 0:00:22]} h6 {[%emt 0:01:08]} 9. Bh4 {[%emt 0:00:15]} Re8 {[%emt 0:02:37]} 10. Nf3 {[%emt 0:02:24]} Bg4 {[%emt 0:07:18]} 11. Ne5 {[%emt 0:02:11]} Be6 {[%emt 0:11:43]} 12. O-O {[%emt 0:04:11]} Nbd7 {[%emt 0:00:54]} 13. f4 {[%emt 0:02:11]} Nxe5 {[%emt 0:09:36]} 14. dxe5 {[%emt 0:04:01]} Nd7 {[%emt 0:03:31]} 15. Bxe7 {[%emt 0:06:27]} Qxe7 {[%emt 0:00:10]} 16. f5 {[%emt 0:03:23]} Nxe5 {[%emt 0:00:05]} 17. fxe6 {[%emt 0:00:19]} Qxe6 {[%emt 0:00:06]} 18. Rae1 {[%emt 0:09:33]} Re7 {[%emt 0:03:52]} 19. Nb1 {[%emt 0:20:09]} Qd6 {[%emt 0:04:46]} 20. Nd2 {[%emt 0:01:10]} Ng4 {[%emt 0:00:34]} 21. Nf3 {[%emt 0:05:14]} Nxe3 {[%emt 0:00:30]} 22. Qe2 {[%emt 0:01:15]} Rae8 {[%emt 0:00:40]} 23. Rf2 {[%emt 0:01:58]} Ng4 {[%emt 0:00:23]} 24. Qxe7 {[%emt 0:11:10]} Rxe7 {[%emt 0:00:34]} 25. Rxe7 {[%emt 0:00:06]} Qxe7 {[%emt 0:00:04]} 26. Re2 {[%emt 0:00:06]} Qc5+ {[%emt 0:00:15]} 27. Kf1 {[%emt 0:00:52]} Ne3+ {[%emt 0:01:28]} 28. Kf2 {[%emt 0:10:02]} Ng4+ {[%emt 0:00:46]} 29. Kf1 {[%emt 0:00:42]} g6 {[%emt 0:02:00]} 30. h3 {[%emt 0:05:02]} Ne3+ {[%emt 0:03:33]} 31. Ke1 {[%emt 0:00:07]} Qc1+ {[%emt 0:00:42]} 32. Kf2 {[%emt 0:00:13]} Nd1+ {[%emt 0:00:18]} 33. Kg3 {[%emt 0:01:14]} Nxb2 {[%emt 0:00:38]} 34. Rc2 {[%emt 0:03:58]} Qb1 {[%emt 0:01:33]} 35. Bxg6 {[%emt 0:03:27]} fxg6 {[%emt 0:00:16]} 36. Rc3 {[%emt 0:00:20]} Nc4 {[%emt 0:00:32]} 37. Rb3 {[%emt 0:00:40]} Qf5 {[%emt 0:00:41]} 38. Rxb7 {[%emt 0:00:33]} Qc8 {[%emt 0:00:12]} 39. Re7 {[%emt 0:00:48]} Qd8 {[%emt 0:00:27]} 40. Rb7 {[%emt 0:01:48]} d4 {[%emt 0:00:27]} 41. Kf2 {[%emt 0:32:18]} d3 {[%emt 0:30:13]} 42. Rb1 {[%emt 0:00:50]} d2 {[%emt 0:00:58]} 43. Rd1 {[%emt 0:00:00]} Nb2 {[%emt 0:00:00]} 44. Rxd2 {[%emt 0:00:00]} Qb6+ {[%emt 0:00:00]} 45. Ke2 {[%emt 0:00:00]} c5 {[%emt 0:00:00]} 46. Ne1 {[%emt 0:00:00]} Qe6+ {[%emt 0:00:00]} 47. Kf2 {[%emt 0:00:00]} Nc4 {[%emt 0:00:00]} 48. Re2 {[%emt 0:00:00]} Qd6 {[%emt 0:00:00]} 49. Nf3 {[%emt 0:00:00]} Na3 {[%emt 0:00:00]} 50. Rd2 {[%emt 0:00:00]} Qb6 {[%emt 0:00:00]} 51. Ke2 {[%emt 0:00:31]} c4 {[%emt 0:00:00]} 52. Rd1 {[%emt 0:00:46]} c3 {[%emt 0:00:00]} 53. Ne1 {[%emt 0:01:28]} Qb2+ {[%emt 0:00:00]} 54. Ke3 {[%emt 0:03:33]} c2 {[%emt 0:00:00]} 55. Rd8+ {[%emt 0:00:17]} Kf7 {[%emt 0:00:00]} 56. Nd3 {[%emt 0:00:40]} c1=Q+ {[%emt 0:00:00]} 57. Nxc1 {[%emt 0:00:08]} Qxc1+ {[%emt 0:00:00]} 58. Ke4 {[%emt 0:00:16]} Qc6+ {[%emt 0:00:00]} 59. Kd3 {[%emt 0:00:24]} Ke7 {[%emt 0:00:00]} 60. Rh8 {[%emt 0:00:56]} Qc2+ {[%emt 0:00:00]} 0-1

[Event "DVM U14 2024"]
[Site "Heidelberg"]
[Date "2024.12.28"]
[Round "3"]
[White "Li, Xiao Teng"]
[Black "Nawrath, Lars"]
[Result "1-0"]
[ECO "E01"]
[WhiteElo "1661"]
[BlackElo "1189"]
[Annotator "NA RC"]
[PlyCount "83"]
[EventDate "2024.12.23"]
[EventType "team-tourn"]
[EventRounds "7"]
[EventCountry "GER"]
[SourceTitle "playchess.com"]
[Source "ChessBase"]
[SourceQuality "1"]
[TimeControl "40/5400+30:1800+30"]

1. c4 {[%emt 0:00:03]} Nf6 {[%emt 0:00:06]} 2. d4 {[%emt 0:00:16]} e6 {[%emt 0:00:06]} 3. Nc3 {[%emt 0:00:12]} d5 {[%emt 0:00:08]} 4. g3 {[%emt 0:00:11]} c5 {[%emt 0:00:06]} 5. e3 {[%emt 0:02:28]} Nc6 {[%emt 0:00:48]} 6. Bg2 {[%emt 0:00:47]} cxd4 {[%emt 0:03:28]} 7. exd4 {[%emt 0:00:23]} Be7 {[%emt 0:00:11]} 8. Nge2 {[%emt 0:01:08]} O-O {[%emt 0:01:55]} 9. O-O {[%emt 0:01:04]} b6 {[%emt 0:01:48]} 10. b3 {[%emt 0:02:45]} Bb7 {[%emt 0:01:53]} 11. Bb2 {[%emt 0:02:56]} Bb4 {[%emt 0:02:47]} 12. Rc1 {[%emt 0:04:24]} Ne7 {[%emt 0:05:10]} 13. a3 {[%emt 0:03:53]} Bxc3 {[%emt 0:00:40]} 14. Nxc3 {[%emt 0:03:25]} Rc8 {[%emt 0:01:19]} 15. Ne2 {[%emt 0:00:50]} Qd7 {[%emt 0:01:31]} 16. c5 {[%emt 0:05:19]} Rc6 {[%emt 0:03:07]} 17. b4 {[%emt 0:00:29]} Qc7 {[%emt 0:00:55]} 18. b5 {[%emt 0:01:16]} Rd6 {[%emt 0:01:37]} 19. cxd6 {[%emt 0:00:12]} Qxd6 {[%emt 0:00:01]} 20. Rc2 {[%emt 0:01:56]} Rd8 {[%emt 0:00:31]} 21. Qc1 {[%emt 0:01:03]} h6 {[%emt 0:00:45]} 22. Rc7 {[%emt 0:01:09]} Bc6 {[%emt 0:00:52]} 23. Rxc6 {[%emt 0:01:00]} Nxc6 {[%emt 0:00:07]} 24. Qxc6 {[%emt 0:00:04]} Qe7 {[%emt 0:00:41]} 25. Rc1 {[%emt 0:00:38]} Rd7 {[%emt 0:03:03]} 26. Qc3 {[%emt 0:03:04]} Ne8 {[%emt 0:00:51]} 27. Qb4 {[%emt 0:02:24]} Qxb4 {[%emt 0:10:37]} 28. axb4 {[%emt 0:00:08]} Nd6 {[%emt 0:00:12]} 29. Nc3 {[%emt 0:00:25]} Nc4 {[%emt 0:00:49]} 30. Na4 {[%emt 0:01:24]} Kf8 {[%emt 0:00:32]} 31. Bf1 {[%emt 0:00:25]} Rc7 {[%emt 0:01:11]} 32. Ba1 {[%emt 0:01:17]} Ke7 {[%emt 0:00:12]} 33. Nb2 {[%emt 0:00:10]} Kd6 {[%emt 0:00:43]} 34. Nxc4+ {[%emt 0:00:09]} dxc4 {[%emt 0:00:15]} 35. Rxc4 {[%emt 0:00:11]} Rd7 {[%emt 0:00:11]} 36. f3 {[%emt 0:00:59]} Kd5 {[%emt 0:00:07]} 37. Kf2 {[%emt 0:00:26]} f5 {[%emt 0:00:57]} 38. Ke3 {[%emt 0:00:24]} g5 {[%emt 0:00:19]} 39. Rc8 {[%emt 0:02:41]} Rh7 {[%emt 0:00:23]} 40. Rc6 {[%emt 0:00:39]} f4+ {[%emt 0:02:15]} 41. Kd2 {[%emt 0:30:29]} Rc7 {[%emt 0:30:35]} 42. Bc4# {[%emt 0:00:18]} 1-0

[Event "DVM U14 2024"]
[Site "Heidelberg"]
[Date "2024.12.28"]
[Round "3"]
[White "Obermair, Hannes"]
[Black "Blumenthal Tuset, Sebastian"]
[Result "1/2-1/2"]
[ECO "D13"]
[WhiteElo "1653"]
[BlackElo "1732"]
[Annotator "NA RC"]
[PlyCount "130"]
[EventDate "2024.12.23"]
[EventType "team-tourn"]
[EventRounds "7"]
[EventCountry "GER"]
[SourceTitle "playchess.com"]
[Source "ChessBase"]
[SourceQuality "1"]
[TimeControl "40/5400+30:1800+30"]

1. c4 {[%emt 0:00:02]} c6 {[%emt 0:00:12]} 2. d4 {[%emt 0:00:24]} d5 {[%emt 0:00:13]} 3. cxd5 {[%emt 0:00:31]} cxd5 {[%emt 0:00:11]} 4. Nf3 {[%emt 0:00:19]} Nf6 {[%emt 0:00:16]} 5. Nc3 {[%emt 0:00:22]} e6 {[%emt 0:00:17]} 6. e3 {[%emt 0:01:52]} a6 {[%emt 0:00:11]} 7. Bd3 {[%emt 0:00:48]} Bd6 {[%emt 0:00:39]} 8. O-O {[%emt 0:00:30]} O-O {[%emt 0:00:35]} 9. e4 {[%emt 0:03:05]} dxe4 {[%emt 0:00:44]} 10. Nxe4 {[%emt 0:00:22]} Be7 {[%emt 0:01:26]} 11. h3 {[%emt 0:09:24]} Nc6 {[%emt 0:01:52]} 12. Be3 {[%emt 0:04:26]} Nd5 {[%emt 0:04:23]} 13. a3 {[%emt 0:02:51]} b5 {[%emt 0:06:35]} 14. Rc1 {[%emt 0:06:49]} Bb7 {[%emt 0:05:36]} 15. Bb1 {[%emt 0:02:33]} Rc8 {[%emt 0:03:58]} 16. Qd3 {[%emt 0:01:23]} f5 {[%emt 0:02:45]} 17. Nc5 {[%emt 0:02:20]} Bxc5 {[%emt 0:01:14]} 18. Rxc5 {[%emt 0:02:23]} h6 {[%emt 0:03:58]} 19. Re1 {[%emt 0:12:46]} Nf6 {[%emt 0:05:58]} 20. Ba2 {[%emt 0:01:55]} Re8 {[%emt 0:03:14]} 21. Qxf5 {[%emt 0:05:34]} Kh8 {[%emt 0:20:49]} 22. Bxe6 {[%emt 0:06:06]} Ne7 {[%emt 0:01:19]} 23. Qc2 {[%emt 0:09:43]} Be4 {[%emt 0:03:09]} 24. Rxc8 {[%emt 0:05:19]} Nxc8 {[%emt 0:02:03]} 25. Qxc8 {[%emt 0:01:46]} Qd6 {[%emt 0:06:30]} 26. Ne5 {[%emt 0:04:28]} Qxe6 {[%emt 0:01:47]} 27. Qxe6 {[%emt 0:00:29]} Rxe6 {[%emt 0:00:10]} 28. Rc1 {[%emt 0:00:47]} Kh7 {[%emt 0:04:25]} 29. Rc5 {[%emt 0:02:13]} Rd6 {[%emt 0:01:50]} 30. Kh2 {[%emt 0:02:40]} Nd7 {[%emt 0:01:03]} 31. Nxd7 {[%emt 0:00:40]} Rxd7 {[%emt 0:00:08]} 32. g3 {[%emt 0:00:40]} Rf7 {[%emt 0:03:46]} 33. Kg1 {[%emt 0:00:49]} Rf5 {[%emt 0:02:58]} 34. Rxf5 {[%emt 0:00:44]} Bxf5 {[%emt 0:00:09]} 35. h4 {[%emt 0:00:18]} h5 {[%emt 0:00:35]} 36. Kf1 {[%emt 0:00:14]} Kg6 {[%emt 0:00:24]} 37. Bf4 {[%emt 0:01:03]} Bd3+ {[%emt 0:00:40]} 38. Ke1 {[%emt 0:00:20]} Kf5 {[%emt 0:00:18]} 39. d5 {[%emt 0:00:51]} a5 {[%emt 0:00:30]} 40. d6 {[%emt 0:00:37]} Ke6 {[%emt 0:00:24]} 41. Kd2 {[%emt 0:30:22]} Bc4 {[%emt 0:30:19]} 42. Kc3 {[%emt 0:00:22]} a4 {[%emt 0:00:26]} 43. Kd4 {[%emt 0:00:15]} g6 {[%emt 0:00:38]} 44. f3 {[%emt 0:00:58]} Be2 {[%emt 0:00:37]} 45. Kc5 {[%emt 0:01:40]} Kd7 {[%emt 0:00:14]} 46. Be5 {[%emt 0:03:24]} Bxf3 {[%emt 0:02:20]} 47. Kxb5 {[%emt 0:00:19]} Bd1 {[%emt 0:00:09]} 48. Kb4 {[%emt 0:01:23]} Bc2 {[%emt 0:00:31]} 49. Kc3 {[%emt 0:00:00]} Bb3 {[%emt 0:00:00]} 50. Bf4 {[%emt 0:00:00]} Bd1 {[%emt 0:00:00]} 51. Kd4 {[%emt 0:00:00]} Bb3 {[%emt 0:00:00]} 52. Ke5 {[%emt 0:00:00]} Bd1 {[%emt 0:00:00]} 53. Bc1 {[%emt 0:00:00]} Bb3 {[%emt 0:00:00]} 54. Bd2 {[%emt 0:00:00]} Bd1 {[%emt 0:00:00]} 55. Bb4 {[%emt 0:00:00]} Bb3 {[%emt 0:00:00]} 56. Kf6 {[%emt 0:00:00]} Bc2 {[%emt 0:00:00]} 57. Kg5 {[%emt 0:00:00]} Bd3 {[%emt 0:00:00]} 58. g4 {[%emt 0:00:00]} hxg4 {[%emt 0:00:00]} 59. Kxg4 {[%emt 0:00:00]} Bf5+ {[%emt 0:00:00]} 60. Kg5 {[%emt 0:00:00]} Bd3 {[%emt 0:00:00]} 61. Bc5 {[%emt 0:00:00]} Bc2 {[%emt 0:00:00]} 62. Kf6 {[%emt 0:00:00]} Bd3 {[%emt 0:00:00]} 63. Bb4 {[%emt 0:00:00]} Bc2 {[%emt 0:00:00]} 64. Kg5 {[%emt 0:00:00]} Bd3 {[%emt 0:00:00]} 65. Kf6 {[%emt 0:00:00]} Bc2 {[%emt 0:00:00]} 1/2-1/2

[Event "DVM U14 2024"]
[Site "Heidelberg"]
[Date "2024.12.28"]
[Round "3"]
[White "Zabashtanskyi, Andrii"]
[Black "Luccone, Constantin"]
[Result "1-0"]
[ECO "D32"]
[WhiteElo "1644"]
[BlackElo "1567"]
[Annotator "NA RC"]
[PlyCount "79"]
[EventDate "2024.12.23"]
[EventType "team-tourn"]
[EventRounds "7"]
[EventCountry "GER"]
[SourceTitle "playchess.com"]
[Source "ChessBase"]
[SourceQuality "1"]
[TimeControl "40/5400+30:1800+30"]

1. d4 {[%emt 0:00:02]} d5 {[%emt 0:00:05]} 2. c4 {[%emt 0:00:06]} e6 {[%emt 0:00:03]} 3. Nc3 {[%emt 0:00:11]} c5 {[%emt 0:00:16]} 4. e3 {[%emt 0:01:52]} Nf6 {[%emt 0:00:09]} 5. Nf3 {[%emt 0:00:14]} Nc6 {[%emt 0:00:23]} 6. dxc5 {[%emt 0:01:26]} Bxc5 {[%emt 0:00:21]} 7. cxd5 {[%emt 0:00:23]} exd5 {[%emt 0:00:14]} 8. h3 {[%emt 0:01:03]} a6 {[%emt 0:00:17]} 9. Be2 {[%emt 0:00:57]} O-O {[%emt 0:00:50]} 10. O-O {[%emt 0:00:08]} Bf5 {[%emt 0:04:14]} 11. Bd3 {[%emt 0:01:22]} Be6 {[%emt 0:01:13]} 12. b3 {[%emt 0:02:01]} Rc8 {[%emt 0:01:23]} 13. Bb2 {[%emt 0:02:31]} Qe7 {[%emt 0:05:14]} 14. Qe2 {[%emt 0:01:52]} Rfd8 {[%emt 0:00:27]} 15. Rfd1 {[%emt 0:01:35]} b5 {[%emt 0:15:42]} 16. Rac1 {[%emt 0:01:26]} Bb6 {[%emt 0:07:00]} 17. a4 {[%emt 0:07:25]} b4 {[%emt 0:02:58]} 18. Nb1 {[%emt 0:04:18]} a5 {[%emt 0:04:46]} 19. Nbd2 {[%emt 0:01:36]} Rc7 {[%emt 0:15:07]} 20. Ba6 {[%emt 0:02:34]} Na7 {[%emt 0:07:04]} 21. Rxc7 {[%emt 0:01:57]} Qxc7 {[%emt 0:02:05]} 22. Rc1 {[%emt 0:00:38]} Qe7 {[%emt 0:01:02]} 23. Bd4 {[%emt 0:01:48]} Rb8 {[%emt 0:03:19]} 24. Qd3 {[%emt 0:01:50]} Bxd4 {[%emt 0:05:45]} 25. Nxd4 {[%emt 0:00:47]} Bc8 {[%emt 0:00:59]} 26. Bxc8 {[%emt 0:01:30]} Rxc8 {[%emt 0:00:07]} 27. Rxc8+ {[%emt 0:01:04]} Nxc8 {[%emt 0:00:05]} 28. Qb5 {[%emt 0:00:43]} Qc7 {[%emt 0:00:35]} 29. Qc6 {[%emt 0:01:18]} Qd8 {[%emt 0:01:22]} 30. Nb5 {[%emt 0:03:17]} Ne7 {[%emt 0:00:27]} 31. Qc5 {[%emt 0:02:41]} Nd7 {[%emt 0:00:47]} 32. Qd6 {[%emt 0:01:00]} Qe8 {[%emt 0:01:22]} 33. Nc7 {[%emt 0:00:31]} Qc8 {[%emt 0:02:58]} 34. Nxd5 {[%emt 0:01:06]} Nxd5 {[%emt 0:00:11]} 35. Qxd5 {[%emt 0:00:12]} Qc7 {[%emt 0:01:34]} 36. Nc4 {[%emt 0:00:30]} h6 {[%emt 0:03:21]} 37. Qxa5 {[%emt 0:00:32]} Qb8 {[%emt 0:00:46]} 38. Qd5 {[%emt 0:03:27]} Nf6 {[%emt 0:00:19]} 39. Qd6 {[%emt 0:00:48]} Qa8 {[%emt 0:00:29]} 40. Qxb4 {[%emt 0:00:34]} 1-0